[Event "RUS-chT Premier 2019"]
[Site "Sochi"]
[Date "2019.05.10"]
[Round "9.9"]
[White "Tsydypov, Zhamsaran"]
[Black "Chernobay, Artem"]
[Result "1-0"]
[ECO "B31"]
[WhiteElo "2546"]
[BlackElo "2503"]
[Annotator "ChessBase"]
[PlyCount "53"]
[EventDate "2019.05.01"]
[EventType "team-tourn"]
[EventCountry "RUS"]
[SourceTitle "playchess.com"]
[Source "ChessBase"]
[SourceQuality "1"]
[TimeControl "40/5400+30:1800+30"]

1. e4 {[%emt 0:00:00]} c5 {[%emt 0:00:00]} 2. Nf3 {[%emt 0:00:10]} Nc6 {[%emt 0:00:12]} 3. Bb5 {[%emt 0:01:46]} g6 {[%emt 0:00:27]} 4. Bxc6 {[%emt 0:00:23]} dxc6 {[%emt 0:00:09]} 5. d3 {[%emt 0:00:37]} Bg7 {[%emt 0:00:17]} 6. Nc3 {[%emt 0:00:46]} Nf6 {[%emt 0:00:25]} 7. h3 {[%emt 0:00:47]} Nd7 {[%emt 0:00:31]} 8. Be3 {[%emt 0:00:21]} e5 {[%emt 0:00:33]} 9. Qd2 {[%emt 0:01:34]} h6 {[%emt 0:00:56]} 10. a3 {[%emt 0:03:36]} b6 {[%emt 0:06:14]} 11. O-O {[%emt 0:01:50]} Nf8 {[%emt 0:01:33]} 12. b4 {[%emt 0:01:21]} Ne6 {[%emt 0:01:23]} 13. bxc5 {[%emt 0:03:10]} f5 {[%emt 0:00:59]} 14. exf5 {[%emt 0:06:53]} gxf5 {[%emt 0:00:09]} 15. Rae1 {[%emt 0:03:25]} f4 {[%emt 0:17:23]} 16. Nxe5 {[%emt 0:00:50]} fxe3 {[%emt 0:03:47]} 17. Qxe3 {[%emt 0:03:52]} O-O {[%emt 0:21:52]} 18. Nxc6 {[%emt 0:00:49]} Qh4 {[%emt 0:05:26]} 19. Nd5 {[%emt 0:01:36]} Nxc5 {[%emt 0:11:43]} 20. d4 {[%emt 0:05:17]} Ba6 {[%emt 0:05:08]} 21. dxc5 {[%emt 0:02:29]} Kh7 {[%emt 0:03:13]} 22. f4 {[%emt 0:05:57]} Bxf1 {[%emt 0:09:22]} 23. Qe4+ {[%emt 0:01:31]} Kh8 {[%emt 0:00:06]} 24. Nce7 {[%emt 0:00:36]} Rfe8 {[%emt 0:00:17]} 25. Kxf1 {[%emt 0:05:11]} Qh5 {[%emt 0:03:08]} 26. Ng6+ {[%emt 0:00:34]} Kh7 {[%emt 0:00:09]} 27. Nde7 {[%emt 0:00:05]} 1-0

[Event "RUS-chT Premier 2019"]
[Site "Sochi"]
[Date "2019.05.10"]
[Round "9.10"]
[White "Bykov, Oleg"]
[Black "Bocharov, Dmitry"]
[Result "0-1"]
[ECO "A41"]
[WhiteElo "2395"]
[BlackElo "2530"]
[Annotator "ChessBase"]
[PlyCount "104"]
[EventDate "2019.05.01"]
[EventType "team-tourn"]
[EventCountry "RUS"]
[SourceTitle "playchess.com"]
[Source "ChessBase"]
[SourceQuality "1"]
[TimeControl "40/5400+30:1800+30"]

1. d4 {[%emt 0:00:00]} d6 {[%emt 0:00:00]} 2. Nf3 {[%emt 0:00:01]} Nf6 {[%emt 0:00:13]} 3. c4 {[%emt 0:00:12]} g6 {[%emt 0:00:27]} 4. Nc3 {[%emt 0:00:05]} Bf5 {[%emt 0:00:11]} 5. Nh4 {[%emt 0:08:50]} Bd7 {[%emt 0:00:23]} 6. Nf3 {[%emt 0:00:18]} Bf5 {[%emt 0:00:19]} 7. Nh4 {[%emt 0:01:48]} Bd7 {[%emt 0:00:13]} 8. Nf3 {[%emt 0:03:58]} Bg7 {[%emt 0:02:04]} 9. e4 {[%emt 0:00:15]} e5 {[%emt 0:00:09]} 10. Be2 {[%emt 0:01:02]} O-O {[%emt 0:00:39]} 11. O-O {[%emt 0:00:12]} Re8 {[%emt 0:07:02]} 12. d5 {[%emt 0:01:58]} a5 {[%emt 0:00:20]} 13. Ne1 {[%emt 0:03:15]} c6 {[%emt 0:10:55]} 14. Be3 {[%emt 0:01:33]} Na6 {[%emt 0:00:40]} 15. dxc6 {[%emt 0:06:20]} Bxc6 {[%emt 0:02:33]} 16. f3 {[%emt 0:01:08]} Nc5 {[%emt 0:03:28]} 17. Nc2 {[%emt 0:01:23]} Nh5 {[%emt 0:04:30]} 18. Qd2 {[%emt 0:06:30]} Nf4 {[%emt 0:08:15]} 19. Rfd1 {[%emt 0:05:31]} f5 {[%emt 0:09:07]} 20. exf5 {[%emt 0:17:38]} gxf5 {[%emt 0:10:12]} 21. Bf1 {[%emt 0:03:18]} Qg5 {[%emt 0:14:01]} 22. Nd5 {[%emt 0:02:40]} Nce6 {[%emt 0:05:20]} 23. g3 {[%emt 0:09:53]} Qg6 {[%emt 0:02:26]} 24. Kh1 {[%emt 0:02:15]} Nh5 {[%emt 0:00:42]} 25. Bd3 {[%emt 0:03:50]} Qf7 {[%emt 0:04:10]} 26. Qg2 {[%emt 0:02:33]} Kh8 {[%emt 0:02:28]} 27. Qh3 {[%emt 0:01:36]} f4 {[%emt 0:06:12]} 28. gxf4 {[%emt 0:04:22]} exf4 {[%emt 0:00:16]} 29. Bf2 {[%emt 0:01:54]} Bxb2 {[%emt 0:03:23]} 30. Rab1 {[%emt 0:00:08]} Be5 {[%emt 0:00:41]} 31. Rg1 {[%emt 0:01:05]} Rg8 {[%emt 0:00:46]} 32. Bh4 {[%emt 0:02:33]} Nc5 {[%emt 0:01:49]} 33. Bf5 {[%emt 0:01:03]} Raf8 {[%emt 0:00:49]} 34. Ne7 {[%emt 0:04:00]} Ng3+ {[%emt 0:01:05]} 35. hxg3 {[%emt 0:00:17]} Bxf3+ {[%emt 0:00:16]} 36. Rg2 {[%emt 0:00:46]} Rg7 {[%emt 0:00:59]} 37. Ne1 {[%emt 0:02:56]} Bxg2+ {[%emt 0:00:33]} 38. Nxg2 {[%emt 0:00:01]} fxg3 {[%emt 0:00:36]} 39. Rg1 {[%emt 0:01:18]} Bf6 {[%emt 0:00:35]} 40. Nd5 {[%emt 0:00:00]} Be5 {[%emt 0:00:00]} 41. Nge3 {[%emt 0:04:39]} Qh5 {[%emt 0:07:55]} 42. Bg4 {[%emt 0:24:00]} Qh6 {[%emt 0:02:08]} 43. Bf5 {[%emt 0:01:40]} Rxf5 {[%emt 0:06:37]} 44. Nxf5 {[%emt 0:00:04]} g2+ {[%emt 0:00:08]} 45. Qxg2 {[%emt 0:00:02]} Rxg2 {[%emt 0:00:10]} 46. Rxg2 {[%emt 0:00:07]} Qc1+ {[%emt 0:06:53]} 47. Rg1 {[%emt 0:00:03]} Qb2 {[%emt 0:01:08]} 48. Bf6+ {[%emt 0:03:17]} Bxf6 {[%emt 0:00:15]} 49. Nh6 {[%emt 0:00:04]} Bg7 {[%emt 0:01:38]} 50. Ne7 {[%emt 0:00:06]} Qf2 {[%emt 0:00:51]} 51. Nhf5 {[%emt 0:00:16]} Qf3+ {[%emt 0:00:11]} 52. Rg2 {[%emt 0:00:12]} Qf1+ {[%emt 0:00:12]} 0-1

[Event "RUS-chT Premier 2019"]
[Site "Sochi"]
[Date "2019.05.10"]
[Round "9.11"]
[White "Kezin, Roman"]
[Black "Ofitserian, Boris"]
[Result "1-0"]
[ECO "A34"]
[WhiteElo "2468"]
[BlackElo "2413"]
[Annotator "ChessBase"]
[PlyCount "73"]
[EventDate "2019.05.01"]
[EventType "team-tourn"]
[EventCountry "RUS"]
[SourceTitle "playchess.com"]
[Source "ChessBase"]
[SourceQuality "1"]
[TimeControl "40/5400+30:1800+30"]

1. c4 {[%emt 0:00:00]} Nf6 {[%emt 0:00:00]} 2. Nc3 {[%emt 0:00:00]} c5 {[%emt 0:00:10]} 3. Nf3 {[%emt 0:00:04]} d5 {[%emt 0:00:21]} 4. cxd5 {[%emt 0:00:04]} Nxd5 {[%emt 0:00:03]} 5. e3 {[%emt 0:00:03]} Nxc3 {[%emt 0:00:13]} 6. bxc3 {[%emt 0:00:04]} g6 {[%emt 0:00:49]} 7. Bb5+ {[%emt 0:07:42]} Nd7 {[%emt 0:00:29]} 8. O-O {[%emt 0:00:26]} Bg7 {[%emt 0:00:25]} 9. d4 {[%emt 0:00:17]} O-O {[%emt 0:05:11]} 10. a4 {[%emt 0:05:24]} Qc7 {[%emt 0:03:06]} 11. Qe2 {[%emt 0:20:03]} b6 {[%emt 0:03:29]} 12. e4 {[%emt 0:03:55]} a6 {[%emt 0:03:25]} 13. Bd3 {[%emt 0:00:51]} e5 {[%emt 0:05:40]} 14. d5 {[%emt 0:06:38]} Nf6 {[%emt 0:02:01]} 15. Nd2 {[%emt 0:07:04]} Ne8 {[%emt 0:13:08]} 16. c4 {[%emt 0:25:16]} Nd6 {[%emt 0:05:17]} 17. Bb2 {[%emt 0:00:05]} g5 {[%emt 0:25:03]} 18. a5 {[%emt 0:00:10]} b5 {[%emt 0:00:28]} 19. Nb3 {[%emt 0:01:23]} f5 {[%emt 0:01:52]} 20. Rac1 {[%emt 0:06:07]} Rb8 {[%emt 0:13:03]} 21. cxb5 {[%emt 0:04:57]} fxe4 {[%emt 0:01:37]} 22. b6 {[%emt 0:00:01]} exd3 {[%emt 0:02:28]} 23. bxc7 {[%emt 0:00:06]} Rxb3 {[%emt 0:00:10]} 24. Qd2 {[%emt 0:00:19]} Rf4 {[%emt 0:00:22]} 25. f3 {[%emt 0:08:50]} c4 {[%emt 0:11:54]} 26. Bc3 {[%emt 0:01:45]} Nb5 {[%emt 0:01:11]} 27. Ba1 {[%emt 0:00:35]} Nd6 {[%emt 0:00:54]} 28. Rb1 {[%emt 0:00:31]} Rb5 {[%emt 0:00:31]} 29. Rxb5 {[%emt 0:00:39]} Nxb5 {[%emt 0:00:19]} 30. g3 {[%emt 0:00:46]} Rf5 {[%emt 0:00:48]} 31. Rc1 {[%emt 0:00:24]} Nd6 {[%emt 0:00:17]} 32. Qe3 {[%emt 0:00:42]} h5 {[%emt 0:00:35]} 33. h3 {[%emt 0:00:42]} Kh7 {[%emt 0:00:37]} 34. g4 {[%emt 0:00:28]} Rf7 {[%emt 0:00:31]} 35. Bc3 {[%emt 0:00:29]} Rxc7 {[%emt 0:00:24]} 36. Bb4 {[%emt 0:00:09]} Nb5 {[%emt 0:00:35]} 37. Rxc4 {[%emt 0:00:28]} 1-0

[Event "RUS-chT Premier 2019"]
[Site "Sochi"]
[Date "2019.05.10"]
[Round "9.12"]
[White "Nozdrachev, Leonid"]
[Black "Murzin, Volodar"]
[Result "1-0"]
[ECO "D10"]
[WhiteElo "2367"]
[BlackElo "2407"]
[Annotator "ChessBase"]
[PlyCount "105"]
[EventDate "2019.05.01"]
[EventType "team-tourn"]
[EventCountry "RUS"]
[SourceTitle "playchess.com"]
[Source "ChessBase"]
[SourceQuality "1"]
[TimeControl "40/5400+30:1800+30"]

1. d4 {[%emt 0:00:00]} d5 {[%emt 0:00:00]} 2. c4 {[%emt 0:01:37]} c6 {[%emt 0:00:00]} 3. Nc3 {[%emt 0:00:09]} dxc4 {[%emt 0:00:08]} 4. e3 {[%emt 0:01:45]} b5 {[%emt 0:00:08]} 5. a4 {[%emt 0:01:28]} b4 {[%emt 0:00:11]} 6. Ne4 {[%emt 0:01:30]} Qd5 {[%emt 0:00:14]} 7. Nd2 {[%emt 0:00:43]} c3 {[%emt 0:00:16]} 8. bxc3 {[%emt 0:00:32]} bxc3 {[%emt 0:00:01]} 9. Nb1 {[%emt 0:00:54]} Qa5 {[%emt 0:00:14]} 10. Qc2 {[%emt 0:01:39]} Na6 {[%emt 0:00:13]} 11. Qxc3 {[%emt 0:04:06]} Nb4 {[%emt 0:02:00]} 12. Bd2 {[%emt 0:00:29]} e6 {[%emt 0:00:33]} 13. Nf3 {[%emt 0:14:35]} Nf6 {[%emt 0:00:51]} 14. Bc4 {[%emt 0:02:45]} Be7 {[%emt 0:03:13]} 15. O-O {[%emt 0:03:21]} O-O {[%emt 0:03:00]} 16. Na3 {[%emt 0:11:21]} Bb7 {[%emt 0:14:44]} 17. Qb3 {[%emt 0:04:56]} c5 {[%emt 0:07:31]} 18. Ne5 {[%emt 0:04:52]} Qc7 {[%emt 0:21:00]} 19. Nb5 {[%emt 0:11:08]} Qc8 {[%emt 0:06:21]} 20. Rfc1 {[%emt 0:14:09]} a6 {[%emt 0:12:30]} 21. Bxb4 {[%emt 0:04:43]} cxb4 {[%emt 0:01:18]} 22. Bf1 {[%emt 0:02:06]} Qd8 {[%emt 0:02:28]} 23. Nc3 {[%emt 0:05:35]} Qb8 {[%emt 0:05:47]} 24. Na2 {[%emt 0:01:14]} a5 {[%emt 0:05:08]} 25. Bb5 {[%emt 0:02:13]} Bd6 {[%emt 0:01:43]} 26. f4 {[%emt 0:00:41]} Bxe5 {[%emt 0:01:46]} 27. fxe5 {[%emt 0:00:17]} Ne4 {[%emt 0:00:10]} 28. Qd3 {[%emt 0:01:38]} Bd5 {[%emt 0:04:58]} 29. Bc6 {[%emt 0:02:13]} Ra7 {[%emt 0:01:14]} 30. Bxd5 {[%emt 0:00:54]} exd5 {[%emt 0:00:02]} 31. Rc6 {[%emt 0:00:46]} Qb7 {[%emt 0:02:38]} 32. Rc2 {[%emt 0:00:11]} Qd7 {[%emt 0:03:59]} 33. Nc1 {[%emt 0:00:40]} Rc8 {[%emt 0:00:53]} 34. Nb3 {[%emt 0:01:03]} Rxc2 {[%emt 0:00:27]} 35. Qxc2 {[%emt 0:00:03]} Rc7 {[%emt 0:00:20]} 36. Qb2 {[%emt 0:00:53]} Qc8 {[%emt 0:00:31]} 37. Rc1 {[%emt 0:00:45]} Rxc1+ {[%emt 0:00:36]} 38. Nxc1 {[%emt 0:00:31]} Qc4 {[%emt 0:00:22]} 39. Nb3 {[%emt 0:00:32]} Qd3 {[%emt 0:01:01]} 40. Qc1 {[%emt 0:00:00]} Nc3 {[%emt 0:00:00]} 41. Kh1 {[%emt 0:06:31]} Qa6 {[%emt 0:01:43]} 42. h3 {[%emt 0:02:34]} g6 {[%emt 0:01:14]} 43. Kh2 {[%emt 0:01:57]} Kg7 {[%emt 0:05:28]} 44. Nc5 {[%emt 0:02:13]} Qe2 {[%emt 0:00:58]} 45. Nb3 {[%emt 0:07:54]} Qa6 {[%emt 0:02:12]} 46. Nc5 {[%emt 0:00:16]} Qc4 {[%emt 0:01:00]} 47. Qe1 {[%emt 0:01:54]} Qe2 {[%emt 0:04:59]} 48. Qh4 {[%emt 0:03:32]} Ne4 {[%emt 0:12:13]} 49. Nxe4 {[%emt 0:01:58]} dxe4 {[%emt 0:00:33]} 50. Qf6+ {[%emt 0:00:36]} Kg8 {[%emt 0:00:38]} 51. d5 {[%emt 0:00:52]} b3 {[%emt 0:00:37]} 52. e6 {[%emt 0:00:39]} fxe6 {[%emt 0:00:09]} 53. dxe6 {[%emt 0:00:11]} 1-0

[Event "RUS-chT Premier 2019"]
[Site "Sochi"]
[Date "2019.05.10"]
[Round "9.14"]
[White "Zvjaginsev, Vadim"]
[Black "Alekseev, Evgeny"]
[Result "1-0"]
[ECO "B40"]
[WhiteElo "2635"]
[BlackElo "2647"]
[Annotator "RC"]
[PlyCount "99"]
[EventDate "2019.05.01"]
[EventType "team-tourn"]
[EventCountry "RUS"]
[SourceTitle "playchess.com"]
[Source "ChessBase"]
[SourceQuality "1"]
[TimeControl "40/5400+30:1800+30"]

1. Nf3 {[%emt 0:00:00]} c5 {[%emt 0:00:00]} 2. e4 {[%emt 0:00:00]} e6 {[%emt 0:00:16]} 3. g3 {[%emt 0:00:00]} Nc6 {[%emt 0:00:57]} 4. d4 {[%emt 0:00:29]} cxd4 {[%emt 0:07:57]} 5. Nxd4 {[%emt 0:00:06]} Nxd4 {[%emt 0:10:22]} 6. Qxd4 {[%emt 0:00:09]} Ne7 {[%emt 0:00:09]} 7. Bg2 {[%emt 0:07:09]} Nc6 {[%emt 0:00:11]} 8. Qd2 {[%emt 0:04:06]} b5 {[%emt 0:03:31]} 9. O-O {[%emt 0:00:51]} Be7 {[%emt 0:03:03]} 10. Nc3 {[%emt 0:03:33]} Rb8 {[%emt 0:10:26]} 11. b3 {[%emt 0:03:57]} O-O {[%emt 0:01:17]} 12. Bb2 {[%emt 0:00:31]} d6 {[%emt 0:04:00]} 13. Nd1 {[%emt 0:05:54]} Qa5 {[%emt 0:13:33]} 14. Qxa5 {[%emt 0:01:13]} Nxa5 {[%emt 0:00:01]} 15. Ne3 {[%emt 0:00:22]} Bd7 {[%emt 0:12:56]} 16. Rfd1 {[%emt 0:05:12]} Rfd8 {[%emt 0:01:03]} 17. Rac1 {[%emt 0:03:56]} Be8 {[%emt 0:07:36]} 18. h4 {[%emt 0:05:29]} Kf8 {[%emt 0:02:22]} 19. f4 {[%emt 0:01:30]} Rdc8 {[%emt 0:02:31]} 20. f5 {[%emt 0:06:15]} e5 {[%emt 0:01:32]} 21. Nd5 {[%emt 0:00:58]} Bd8 {[%emt 0:00:22]} 22. Bf1 {[%emt 0:02:21]} Nc6 {[%emt 0:06:33]} 23. c3 {[%emt 0:05:05]} Ne7 {[%emt 0:05:37]} 24. Ba3 {[%emt 0:04:36]} Nxd5 {[%emt 0:00:04]} 25. Rxd5 {[%emt 0:00:10]} b4 {[%emt 0:00:05]} 26. cxb4 {[%emt 0:00:47]} Rxc1 {[%emt 0:00:58]} 27. Bxc1 {[%emt 0:00:07]} Bc6 {[%emt 0:00:39]} 28. Rxd6 {[%emt 0:01:11]} Bb6+ {[%emt 0:00:36]} 29. Kh2 {[%emt 0:00:33]} Bxe4 {[%emt 0:00:03]} 30. f6 {[%emt 0:02:26]} gxf6 {[%emt 0:03:38]} 31. Rxf6 {[%emt 0:00:36]} Rd8 {[%emt 0:00:26]} 32. Bh6+ {[%emt 0:03:01]} Kg8 {[%emt 0:00:12]} 33. Bc4 {[%emt 0:02:11]} Rd7 {[%emt 0:00:10]} 34. h5 {[%emt 0:06:16]} Rd1 {[%emt 0:03:13]} 35. Bxf7+ {[%emt 0:02:16]} Kh8 {[%emt 0:00:03]} 36. Kh3 {[%emt 0:00:06]} Bd8 {[%emt 0:00:51]} 37. Rf2 {[%emt 0:01:05]} Bb6 {[%emt 0:00:06]} 38. Rf6 {[%emt 0:05:31]} Bd8 {[%emt 0:00:10]} 39. Rf2 {[%emt 0:00:41]} Bb6 {[%emt 0:00:01]} 40. Rd2 {[%emt 0:00:00]} Rh1+ {[%emt 0:00:00]} 41. Rh2 {[%emt 0:12:32]} Rd1 {[%emt 0:18:07]} 42. Bc4 {[%emt 0:01:21]} Rg1 {[%emt 0:04:23]} 43. Kg4 {[%emt 0:04:07]} Bg2 {[%emt 0:01:41]} 44. Bf8 {[%emt 0:02:51]} e4 {[%emt 0:00:17]} 45. h6 {[%emt 0:02:13]} Bf3+ {[%emt 0:00:06]} 46. Kf4 {[%emt 0:02:21]} Bc7+ {[%emt 0:00:36]} 47. Kf5 {[%emt 0:00:38]} Rxg3 {[%emt 0:00:10]} 48. Bg7+ {[%emt 0:00:28]} Rxg7 {[%emt 0:00:04]} 49. hxg7+ {[%emt 0:00:03]} Kxg7 {[%emt 0:00:04]} 50. Rd2 {[%emt 0:00:15]} 1-0

[Event "RUS-chT Premier 2019"]
[Site "Sochi"]
[Date "2019.05.10"]
[Round "9.17"]
[White "Romanov, Evgeny"]
[Black "Popov, Ivan"]
[Result "1/2-1/2"]
[ECO "D03"]
[WhiteElo "2573"]
[BlackElo "2600"]
[Annotator "ChessBase"]
[PlyCount "61"]
[EventDate "2019.05.01"]
[EventType "team-tourn"]
[EventCountry "RUS"]
[SourceTitle "playchess.com"]
[Source "ChessBase"]
[SourceQuality "1"]
[TimeControl "40/5400+30:1800+30"]

1. d4 {[%emt 0:00:00]} d5 {[%emt 0:00:00]} 2. Nf3 {[%emt 0:00:04]} Nf6 {[%emt 0:00:10]} 3. Bg5 {[%emt 0:00:21]} Ne4 {[%emt 0:02:13]} 4. Bh4 {[%emt 0:00:14]} c5 {[%emt 0:01:20]} 5. dxc5 {[%emt 0:00:33]} f6 {[%emt 0:10:17]} 6. Nbd2 {[%emt 0:07:30]} Nxc5 {[%emt 0:00:58]} 7. Nb3 {[%emt 0:05:04]} Nc6 {[%emt 0:09:53]} 8. Nxc5 {[%emt 0:08:55]} Qa5+ {[%emt 0:00:11]} 9. c3 {[%emt 0:01:32]} Qxc5 {[%emt 0:00:08]} 10. Nd2 {[%emt 0:00:08]} e5 {[%emt 0:14:57]} 11. e4 {[%emt 0:00:49]} Be6 {[%emt 0:00:09]} 12. exd5 {[%emt 0:13:18]} Qxd5 {[%emt 0:01:52]} 13. Qb3 {[%emt 0:15:44]} O-O-O {[%emt 0:04:38]} 14. Qxd5 {[%emt 0:01:19]} Bxd5 {[%emt 0:00:12]} 15. f3 {[%emt 0:02:20]} Bc5 {[%emt 0:12:25]} 16. Ne4 {[%emt 0:02:32]} Bb6 {[%emt 0:00:12]} 17. Bf2 {[%emt 0:05:07]} Bxf2+ {[%emt 0:00:34]} 18. Nxf2 {[%emt 0:00:18]} e4 {[%emt 0:15:13]} 19. fxe4 {[%emt 0:01:23]} Bxe4 {[%emt 0:01:54]} 20. Nxe4 {[%emt 0:04:40]} Rhe8 {[%emt 0:00:08]} 21. Be2 {[%emt 0:01:01]} Rxe4 {[%emt 0:00:10]} 22. Rd1 {[%emt 0:00:20]} Rde8 {[%emt 0:00:15]} 23. Rd2 {[%emt 0:00:08]} Ne5 {[%emt 0:00:14]} 24. Kd1 {[%emt 0:00:50]} Nc4 {[%emt 0:00:42]} 25. Bxc4 {[%emt 0:00:19]} Rxc4 {[%emt 0:00:03]} 26. Re1 {[%emt 0:00:26]} Rxe1+ {[%emt 0:00:52]} 27. Kxe1 {[%emt 0:00:08]} Kc7 {[%emt 0:00:26]} 28. Re2 {[%emt 0:02:35]} Kd7 {[%emt 0:00:17]} 29. Rd2+ {[%emt 0:00:09]} Kc7 {[%emt 0:00:06]} 30. Re2 {[%emt 0:00:08]} Kd7 {[%emt 0:00:04]} 31. Rd2+ {[%emt 0:00:07]} 1/2-1/2

[Event "RUS-chT Premier 2019"]
[Site "Sochi"]
[Date "2019.05.10"]
[Round "9.18"]
[White "Gordievsky, Dmitry"]
[Black "Rozum, Ivan"]
[Result "1/2-1/2"]
[ECO "A30"]
[WhiteElo "2585"]
[BlackElo "2568"]
[Annotator "ChessBase"]
[PlyCount "106"]
[EventDate "2019.05.01"]
[EventType "team-tourn"]
[EventCountry "RUS"]
[SourceTitle "playchess.com"]
[Source "ChessBase"]
[SourceQuality "1"]
[TimeControl "40/5400+30:1800+30"]

1. Nf3 {[%emt 0:00:00]} Nf6 {[%emt 0:00:00]} 2. c4 {[%emt 0:00:00]} b6 {[%emt 0:00:55]} 3. g3 {[%emt 0:01:09]} Bb7 {[%emt 0:00:06]} 4. Bg2 {[%emt 0:00:04]} c5 {[%emt 0:00:14]} 5. O-O {[%emt 0:01:05]} e6 {[%emt 0:00:05]} 6. Nc3 {[%emt 0:01:46]} Be7 {[%emt 0:03:27]} 7. b3 {[%emt 0:00:21]} O-O {[%emt 0:00:08]} 8. Bb2 {[%emt 0:00:03]} d5 {[%emt 0:00:24]} 9. e3 {[%emt 0:00:10]} Qc8 {[%emt 0:00:25]} 10. Qe2 {[%emt 0:03:23]} Rd8 {[%emt 0:01:10]} 11. Rfc1 {[%emt 0:02:39]} Nc6 {[%emt 0:20:27]} 12. cxd5 {[%emt 0:15:47]} exd5 {[%emt 0:01:05]} 13. d4 {[%emt 0:00:28]} cxd4 {[%emt 0:00:28]} 14. Nxd4 {[%emt 0:16:42]} Nxd4 {[%emt 0:00:11]} 15. exd4 {[%emt 0:00:03]} Qd7 {[%emt 0:00:46]} 16. Nb5 {[%emt 0:00:41]} Ba6 {[%emt 0:18:00]} 17. a4 {[%emt 0:00:46]} Rac8 {[%emt 0:00:15]} 18. Qf1 {[%emt 0:08:54]} Ne4 {[%emt 0:03:33]} 19. Bh3 {[%emt 0:01:03]} f5 {[%emt 0:00:34]} 20. Qd3 {[%emt 0:07:31]} Bb4 {[%emt 0:04:14]} 21. Rxc8 {[%emt 0:07:13]} Rxc8 {[%emt 0:00:06]} 22. Rc1 {[%emt 0:00:10]} g6 {[%emt 0:04:08]} 23. Rxc8+ {[%emt 0:04:20]} Bxc8 {[%emt 0:00:24]} 24. f3 {[%emt 0:04:04]} Ng5 {[%emt 0:02:58]} 25. Bg2 {[%emt 0:01:15]} a6 {[%emt 0:02:14]} 26. Nc3 {[%emt 0:01:02]} Bf8 {[%emt 0:01:45]} 27. Ne2 {[%emt 0:01:25]} Ne6 {[%emt 0:00:13]} 28. Bc1 {[%emt 0:00:33]} Bg7 {[%emt 0:01:10]} 29. Be3 {[%emt 0:00:16]} Bb7 {[%emt 0:03:17]} 30. Nf4 {[%emt 0:01:41]} Nxf4 {[%emt 0:02:04]} 31. Bxf4 {[%emt 0:00:04]} b5 {[%emt 0:04:09]} 32. axb5 {[%emt 0:01:19]} Qxb5 {[%emt 0:01:52]} 33. Qe3 {[%emt 0:02:30]} Qb6 {[%emt 0:01:32]} 34. Qe8+ {[%emt 0:04:30]} Bf8 {[%emt 0:00:09]} 35. Bf1 {[%emt 0:09:25]} Qxd4+ {[%emt 0:02:03]} 36. Kg2 {[%emt 0:00:08]} Qg7 {[%emt 0:12:27]} 37. Bxa6 {[%emt 0:02:34]} Bxa6 {[%emt 0:00:16]} 38. Qe6+ {[%emt 0:00:02]} Qf7 {[%emt 0:00:06]} 39. Qxa6 {[%emt 0:00:03]} Qd7 {[%emt 0:00:55]} 40. Be5 {[%emt 0:00:00]} Bg7 {[%emt 0:00:00]} 41. Bf4 {[%emt 0:09:23]} Bc3 {[%emt 0:06:54]} 42. Qd3 {[%emt 0:01:15]} Qc6 {[%emt 0:00:49]} 43. Be3 {[%emt 0:01:55]} d4 {[%emt 0:03:18]} 44. Bh6 {[%emt 0:01:55]} Kf7 {[%emt 0:03:51]} 45. Kf2 {[%emt 0:01:43]} Qd5 {[%emt 0:06:04]} 46. Qc4 {[%emt 0:03:28]} Qxc4 {[%emt 0:00:49]} 47. bxc4 {[%emt 0:00:04]} Ke6 {[%emt 0:00:11]} 48. Ke2 {[%emt 0:00:15]} Kd6 {[%emt 0:00:06]} 49. Kd3 {[%emt 0:00:09]} Kc5 {[%emt 0:00:05]} 50. Bf8+ {[%emt 0:00:22]} Kc6 {[%emt 0:00:05]} 51. Bg7 {[%emt 0:00:27]} Kc5 {[%emt 0:00:04]} 52. Be5 {[%emt 0:00:12]} Bb2 {[%emt 0:00:21]} 53. Bb8 {[%emt 0:00:07]} Kb6 {[%emt 0:00:16] Ke4} 1/2-1/2

[Event "RUS-chT Premier 2019"]
[Site "Sochi"]
[Date "2019.05.10"]
[Round "9.24"]
[White "Ivanov, Sergey"]
[Black "Khismatullin, Denis"]
[Result "0-1"]
[ECO "D51"]
[WhiteElo "2504"]
[BlackElo "2619"]
[Annotator "RC"]
[PlyCount "78"]
[EventDate "2019.05.01"]
[EventType "team-tourn"]
[EventCountry "RUS"]
[SourceTitle "playchess.com"]
[Source "ChessBase"]
[SourceQuality "1"]
[TimeControl "40/5400+30:1800+30"]

1. d4 {[%emt 0:00:00]} Nf6 {[%emt 0:00:00]} 2. c4 {[%emt 0:00:00]} e6 {[%emt 0:00:00]} 3. Nc3 {[%emt 0:00:00]} d5 {[%emt 0:01:38]} 4. Bg5 {[%emt 0:00:14]} Nbd7 {[%emt 0:01:07]} 5. e3 {[%emt 0:00:34]} c6 {[%emt 0:02:47]} 6. a3 {[%emt 0:03:43]} Be7 {[%emt 0:03:47]} 7. Nf3 {[%emt 0:00:48]} O-O {[%emt 0:00:40]} 8. Qc2 {[%emt 0:01:51]} a6 {[%emt 0:10:09]} 9. Rd1 {[%emt 0:01:26]} b6 {[%emt 0:00:30]} 10. Bd3 {[%emt 0:02:42]} Bb7 {[%emt 0:00:46]} 11. O-O {[%emt 0:02:03]} dxc4 {[%emt 0:09:30]} 12. Bxc4 {[%emt 0:00:25]} c5 {[%emt 0:00:29]} 13. dxc5 {[%emt 0:16:35]} Qc7 {[%emt 0:14:45]} 14. Be2 {[%emt 0:05:45]} Nxc5 {[%emt 0:00:35]} 15. Bf4 {[%emt 0:10:17]} Qc6 {[%emt 0:02:16]} 16. Rc1 {[%emt 0:01:50]} Rfc8 {[%emt 0:03:38]} 17. Rfd1 {[%emt 0:02:00]} Qe8 {[%emt 0:03:37]} 18. b4 {[%emt 0:06:07]} Nce4 {[%emt 0:02:39]} 19. Qb3 {[%emt 0:02:20]} Nxc3 {[%emt 0:02:04]} 20. Rxc3 {[%emt 0:00:09]} Rxc3 {[%emt 0:00:05]} 21. Qxc3 {[%emt 0:00:07]} Nd5 {[%emt 0:00:12]} 22. Qb2 {[%emt 0:02:00]} a5 {[%emt 0:01:41]} 23. Be5 {[%emt 0:03:18]} axb4 {[%emt 0:05:48]} 24. axb4 {[%emt 0:00:14]} f6 {[%emt 0:08:48]} 25. Bd4 {[%emt 0:01:01]} Nxb4 {[%emt 0:08:08]} 26. Bc4 {[%emt 0:02:19]} Bd5 {[%emt 0:07:32]} 27. Bxd5 {[%emt 0:05:42]} Nxd5 {[%emt 0:00:05]} 28. e4 {[%emt 0:00:35]} Qa4 {[%emt 0:03:04]} 29. Rf1 {[%emt 0:08:12]} Nb4 {[%emt 0:03:40]} 30. Bxb6 {[%emt 0:02:33]} Qc6 {[%emt 0:00:16]} 31. Qd4 {[%emt 0:04:47]} Ra6 {[%emt 0:01:09]} 32. Bd8 {[%emt 0:00:30]} Bc5 {[%emt 0:00:25]} 33. Qd1 {[%emt 0:02:38]} Qxe4 {[%emt 0:01:10]} 34. Bc7 {[%emt 0:00:40]} Nd5 {[%emt 0:02:26]} 35. Qb3 {[%emt 0:04:01]} Bb4 {[%emt 0:00:13]} 36. Bg3 {[%emt 0:00:36]} Ra3 {[%emt 0:00:29]} 37. Qb2 {[%emt 0:00:30]} Nc3 {[%emt 0:00:47]} 38. Re1 {[%emt 0:01:30]} Qc4 {[%emt 0:01:02]} 39. Ra1 {[%emt 0:01:42]} Qb3 {[%emt 0:00:49]} 0-1